bitfinex-derivatives/quotes_SOLF0:USTF0_20240920
["timestamp","ask_amount","ask_price","bid_price","bid_amount"]
[1726871495185,13.8127,146.92,146.89,3.4033]
[1726871503801,13.8127,146.92,146.9,3.4031]
[1726871503802,10.41,146.92,146.9,3.4031]
[1726871506204,10.41,146.92,146.88,10.41]
[1726871506205,13.8129,146.91,146.88,3.4035]
[1726871506402,10.41,146.9,146.88,3.4035]
[1726871509702,10.41,146.89,146.81,112.77159145]
[1726871510008,10.41,146.87,146.81,123.18159145]
[1726871510305,10.41,146.85,146.81,123.18159145]
[1726871510611,10.41,146.85,146.84,3.4043]
[1726871510999,3.4039,146.87,146.84,3.4043]
[1726871511198,10.41,146.86,146.83,3.4046]
[1726871512410,3.4039,146.87,146.84,3.4044]
[1726871512613,27.95600025,146.95,146.83,10.41]
[1726871512614,3.4036,146.88,146.83,10.41]
[1726871512819,13.8136,146.88,146.83,10.41]
[1726871513705,3.4036,146.88,146.85,3.4041]
[1726871514013,13.8136,146.88,146.85,3.4041]
[1726871515001,10.41,146.87,146.85,3.4041]
[1726871519119,13.8139,146.87,146.84,3.4044]
[1726871519303,10.41,146.85,146.81,112.77159145]
[1726871519622,10.41,146.85,146.82,3.4049]
[1726871522025,10.41,146.85,146.83,3.4047]
[1726871522210,7.55600025,146.95,146.84,10.41]
[1726871522408,2.7651,146.95,146.82,6.803]
[1726871522616,13.8126,146.93,146.89,10.41]
[1726871522819,10.41,146.93,146.89,10.41]
[1726871523029,10.41,146.94,146.9,10.41]
[1726871523327,10.41,146.94,146.91,3.4029]
[1726871526030,2.709,147.01,146.91,10.41]
[1726871526320,10.41,146.95,146.91,10.41]
[1726871526522,13.812,146.95,146.92,3.4026]
[1726871528422,13.812,146.95,146.91,13.8128]
[1726871533125,10.41,146.94,146.91,3.4028]
[1726871533735,3.4018,146.96,146.91,10.41]
[1726871534034,13.8118,146.96,146.92,10.41]
[1726871534631,2.709,147.01,146.94,10.41]
[1726871534834,10.41,146.98,146.94,10.41]
[1726871535226,10.41,146.98,146.95,3.4019]
[1726871535825,10.41,146.98,146.96,3.4015]
[1726871545539,3.4012,146.99,146.96,3.4015]
[1726871547243,3.4013,146.98,146.96,3.4015]
[1726871549645,1.4207,147.03,146.97,10.41]
[1726871549843,11.8307,147.03,146.97,10.41]
[1726871550254,3.4007,147.01,146.98,3.4013]
[1726871551851,3.4007,147.01,146.98,13.8113]
[1726871552947,1.4025,147.07,147.0,10.41]
[1726871553149,10.41,147.06,147.02,10.41]
[1726871553655,3.3997,147.05,147.02,10.41]
[1726871554255,3.3997,147.05,147.02,13.8103]
[1726871555257,3.3997,147.05,147.02,10.41]
[1726871556256,3.3997,147.05,147.03,10.41]
[1726871556651,2.8077,147.08,147.03,10.41]
[1726871556652,3.3995,147.06,147.04,10.41]
[1726871558059,13.2177,147.08,147.04,10.41]
[1726871559260,3.3996,147.06,147.04,10.41]
[1726871559752,13.2177,147.08,147.03,10.41]
[1726871559957,3.3998,147.05,147.02,10.41]
[1726871560846,3.3998,147.05,147.02,13.8103]
[1726871562157,3.3998,147.05,147.03,10.41]
[1726871563753,3.3998,147.05,147.04,10.41]
[1726871563956,3.3995,147.06,147.04,10.41]
[1726871570478,3.3996,147.05,147.04,10.41]
[1726871570959,2.8077,147.08,147.04,10.41]
[1726871571365,3.3996,147.06,147.04,10.41]
[1726871575882,13.2177,147.08,147.04,10.41]
[1726871576780,3.3998,147.05,147.04,10.41]
[1726871576981,13.2177,147.08,146.99,3.42504176]
[1726871577182,13.2177,147.08,147.04,10.41]
[1726871577782,3.3998,147.05,147.04,10.41]
[1726871579690,3.3995,147.06,147.04,10.41]
[1726871579988,10.41,147.1,147.06,10.41]
[1726871580579,3.3993,147.07,147.06,10.41]
[1726871589289,1.3033,147.11,147.03,3.4]
[1726871589290,3.3995,147.06,147.03,3.4]
[1726871589490,3.3995,147.06,147.05,10.41]
[1726871600404,3.3995,147.06,147.03,3.4]
[1726871600609,3.3995,147.06,147.05,10.41]
[1726871625442,11.7133,147.11,147.05,10.41]
[1726871625443,3.3993,147.07,147.05,10.41]
[1726871625736,3.3993,147.07,147.06,10.41]
[1726871628045,2.7225,147.12,147.06,10.41]
[1726871628236,1.3851,147.17,147.11,10.41]
[1726871628437,10.41,147.15,147.11,10.41]
[1726871628644,3.398,147.12,147.11,10.41]
[1726871631247,4.0325,147.17,147.11,10.41]
[1726871631457,14.4425,147.17,147.13,10.41]
[1726871632047,3.3976,147.14,147.13,10.41]
[1726871637952,3.3974,147.15,147.13,10.41]
[1726871638152,3.3974,147.15,147.14,10.41]
[1726871638355,13.74334638,147.2,147.14,10.41]
[1726871638644,3.3971,147.17,147.16,10.41]
[1726871641548,3.3967,147.18,147.16,10.41]
[1726871641755,3.3967,147.18,147.17,10.41]
[1726871642304,1.2912,147.22,147.17,10.41]
[1726871642456,1.2912,147.22,147.19,10.41]
[1726871643455,3.3962,147.2,147.19,10.41]
[1726871666267,3.3965,147.19,147.15,3.3973]
[1726871666574,3.3965,147.19,147.18,10.41]
[1726871669280,3.3965,147.19,147.15,3.3973]
[1726871669476,3.3965,147.19,147.18,10.41]
[1726871670477,3.3965,147.19,147.15,3.3973]
[1726871670666,3.3965,147.19,147.18,10.41]
[1726871673470,3.3965,147.19,147.15,3.3973]
[1726871673668,3.3965,147.19,147.18,10.41]
[1726871677575,3.3965,147.19,147.16,3.3971]
[1726871677879,3.3965,147.19,147.18,10.41]
[1726871685793,3.3967,147.18,147.12,2.748]
[1726871686113,1.2912,147.22,147.17,10.41]
[1726871686396,1.2912,147.22,147.19,10.41]
[1726871686490,3.3962,147.2,147.19,10.41]
[1726871689392,3.3962,147.2,147.16,3.3971]
[1726871689591,3.3962,147.2,147.19,10.41]
[1726871697642,1.2912,147.22,147.19,10.41]
[1726871697788,1.2912,147.22,147.2,10.41]
[1726871698406,3.396,147.21,147.2,10.41]
[1726871701103,3.396,147.21,147.17,3.3967]
[1726871701308,3.3963,147.2,147.16,3.397]
[1726871701504,3.3963,147.2,147.18,10.41]
[1726871706930,3.3963,147.2,147.19,10.41]
[1726871707308,3.3961,147.21,147.19,10.41]
[1726871707511,3.3961,147.21,147.2,10.41]
[1726871714320,3.3957,147.22,147.2,10.41]
[1726871715220,7.08844079,147.26,147.21,10.41]
[1726871715414,7.08844079,147.26,147.22,10.41]
[1726871715614,3.3954,147.24,147.22,10.41]
[1726871717014,3.3955,147.23,147.21,10.41]
[1726871717217,10.41,147.25,147.2,10.41]
[1726871717715,3.3959,147.22,147.19,10.41]
[1726871718324,3.396,147.21,147.19,10.41]
[1726871722524,3.3962,147.2,147.18,10.41]
[1726871724525,3.3962,147.2,147.19,10.41]
[1726871724922,3.396,147.21,147.19,10.41]
[1726871725228,3.396,147.21,147.2,10.41]
[1726871727819,3.396,147.21,147.17,3.3968]
[1726871728021,3.396,147.21,147.19,10.41]
[1726871733223,3.396,147.21,147.2,10.41]
[1726871734440,3.396,147.21,147.19,10.41]
[1726871745743,3.3958,147.22,147.19,10.41]
[1726871752043,5.1194765,147.26,147.21,10.41]
[1726871752044,3.3955,147.23,147.21,10.41]
[1726871752546,14.1255765,147.26,147.21,10.41]
[1726871753043,3.3954,147.24,147.21,10.41]
[1726871753686,3.3956,147.23,147.21,10.41]
[1726871760048,3.3954,147.24,147.22,10.41]
[1726871760751,3.3954,147.24,147.23,10.41]
[1726871761456,3.7155765,147.26,147.23,10.41]
[1726871762452,7.1105765,147.26,147.23,10.41]
[1726871764555,3.395,147.25,147.23,10.41]
[1726871769664,3.395,147.25,147.22,10.41]
[1726871772562,3.395,147.25,147.23,10.41]
[1726871772768,7.1104765,147.26,147.24,10.41]
[1726871773987,7.1104765,147.26,147.23,10.41]
[1726871774385,7.1104765,147.26,147.22,13.8057]
[1726871774584,3.395,147.25,147.22,10.41]
[1726871779584,7.1104765,147.26,147.22,13.8057]
[1726871779780,3.7155765,147.26,147.23,10.41]
[1726871781087,7.1105765,147.26,147.23,10.41]
[1726871782087,7.1105765,147.26,147.23,110.41]
[1726871783986,3.395,147.25,147.23,110.41]
[1726871794693,3.3953,147.24,147.23,100.0]
[1726871801396,3.3953,147.24,147.23,110.41]
[1726871804804,3.3951,147.25,147.23,110.41]
[1726871806728,14.1255765,147.26,147.23,100.0]
[1726871806729,3.3953,147.24,147.23,100.0]
[1726871813110,3.3951,147.25,147.23,100.0]
[1726871813313,3.3951,147.25,147.23,110.41]
[1726871818512,7.1104765,147.26,147.24,10.41]
[1726871819023,3.7155765,147.26,147.24,10.41]
[1726871819429,3.7155765,147.26,147.25,10.41]
[1726871820607,1.5685765,147.26,147.25,10.41]
[1726871820816,0.37554952,147.28,147.25,10.41]
[1726871821014,0.37554952,147.28,147.27,10.41]
[1726871824639,0.37554952,147.28,147.25,3.3949]
[1726871825032,0.37554952,147.28,147.26,10.41]
[1726871825417,0.37554952,147.28,147.25,10.41]
[1726871826118,0.37554952,147.28,147.26,10.41]
[1726871826319,3.3947,147.27,147.26,10.41]
[1726871826712,0.37554952,147.28,147.25,10.41]
[1726871827722,3.3946,147.27,147.25,10.41]
[1726871828219,3.3948,147.26,147.25,10.41]
[1726871833223,3.3947,147.27,147.25,10.41]
[1726871833423,0.37554952,147.28,147.26,10.41]
[1726871833627,0.37554952,147.28,147.27,10.41]
[1726871834524,3.3946,147.27,147.26,10.41]
[1726871835123,0.37554952,147.28,147.26,10.41]
[1726871835321,0.37554952,147.28,147.27,10.41]
[1726871837330,3.76984952,147.28,147.27,10.41]
[1726871840027,0.37554952,147.28,147.27,13.8046]
[1726871843933,0.37554952,147.28,147.27,10.41]
[1726871845930,3.76994952,147.28,147.25,3.395]
[1726871846227,3.76994952,147.28,147.25,13.805]
[1726871849234,3.76994952,147.28,147.26,10.41]
[1726871855347,3.76994952,147.28,147.27,10.41]
[1726871857438,3.76994952,147.28,147.26,10.41]
[1726871865842,0.37554952,147.28,147.27,10.41]
[1726871875151,0.37554952,147.28,147.26,13.8047]
[1726871880855,0.37554952,147.28,147.27,13.8046]
[1726871881163,7.9767504,147.34,147.24,1.4132]
[1726871881884,10.41,147.33,147.29,10.41]
[1726871881966,3.3938,147.31,147.29,10.41]
[1726871883164,10.41,147.33,147.29,10.41]
[1726871883165,3.3935,147.32,147.29,10.41]
[1726871896482,3.3935,147.32,147.28,3.3943]
[1726871896683,3.3935,147.32,147.29,10.41]
[1726871903780,3.3935,147.32,147.3,10.41]
[1726871904785,3.3933,147.33,147.3,10.41]
[1726871907280,3.3933,147.33,147.31,10.41]
[1726871910901,3.3933,147.33,147.31,210.41]
[1726871934147,10.0119504,147.34,147.31,210.41]
[1726871934410,5.1925504,147.34,147.32,10.41]
[1726871934906,5.1925504,147.34,147.33,10.41]
[1726871935608,8.5855504,147.34,147.32,10.41]
[1726871938811,5.1925504,147.34,147.31,203.3936]
[1726871939108,5.1925504,147.34,147.32,10.41]
[1726871939704,8.5855504,147.34,147.32,10.41]
[1726871940308,3.3933,147.33,147.31,200.0]
[1726871942504,3.3934,147.32,147.31,200.0]
[1726871942710,13.8034,147.32,147.31,200.0]
[1726871947112,3.3937,147.31,147.28,10.41]
[1726871958419,3.3937,147.31,147.28,13.8043]
[1726871959618,3.3939,147.3,147.28,13.8043]
[1726871960926,3.3938,147.31,147.28,13.8043]
[1726871961630,3.3935,147.32,147.29,3.3941]
[1726871961826,10.41,147.32,147.29,3.3941]
[1726871962231,13.8036,147.32,147.29,3.3941]
[1726871962829,3.3937,147.31,147.28,13.8043]
[1726871964526,13.8036,147.32,147.29,3.394]
[1726871964726,13.8036,147.32,147.29,13.804]
[1726871965527,3.3936,147.32,147.29,13.804]
[1726871981439,3.3937,147.31,147.29,10.41]
[1726871981629,3.3937,147.31,147.28,3.3942]
[1726871981630,3.3937,147.31,147.28,13.8042]
[1726871984640,3.3937,147.31,147.29,10.41]
[1726871985036,3.3937,147.31,147.28,13.8042]
[1726871988337,3.3937,147.31,147.29,3.3941]
[1726871990108,3.3934,147.32,147.29,13.8041]
[1726871990253,5.1925504,147.34,147.3,13.8038]
[1726871990739,3.3933,147.33,147.3,13.8038]
[1726871991141,5.1925504,147.34,147.32,10.41]
[1726871992852,5.1925504,147.34,147.32,13.8034]
[1726871994043,8.5855504,147.34,147.31,13.8036]
[1726871994359,18.9955504,147.34,147.31,3.3936]
[1726871998155,5.1925504,147.34,147.31,13.8036]
[1726872001055,8.5855504,147.34,147.31,13.8036]
[1726872001667,8.5855504,147.34,147.31,10.41]
[1726872002632,3.3932,147.33,147.3,13.8038]
[1726872003766,3.3932,147.33,147.29,1.3498]
[1726872003767,3.3935,147.32,147.29,3.3941]
[1726872003952,13.8035,147.32,147.29,3.3941]
[1726872005561,3.3937,147.31,147.28,13.8042]
[1726872005763,10.41,147.31,147.25,1.3614]
[1726872005983,10.41,147.31,147.27,10.41]
[1726872006857,13.8038,147.31,147.28,3.3943]
[1726872011255,3.3939,147.3,147.27,13.8045]
[1726872012356,3.3939,147.3,147.28,3.3943]
[1726872018677,10.41,147.3,147.24,113.77841621]
[1726872018867,10.41,147.3,147.26,10.41]
[1726872019771,10.41,147.3,147.28,3.3943]
[1726872020479,13.8038,147.31,147.28,3.3943]
[1726872025369,3.3938,147.31,147.28,13.8043]
[1726872029282,3.3938,147.31,147.29,3.3941]
[1726872034287,13.8035,147.32,147.29,3.3941]
[1726872036295,10.41,147.31,147.29,3.3941]
[1726872038197,10.41,147.31,147.29,503.3941]
[1726872040203,13.8037,147.31,147.29,503.3941]
[1726872040496,10.41,147.31,147.29,503.3941]
[1726872041001,13.8037,147.31,147.29,503.3941]
[1726872048409,3.3937,147.31,147.29,500.0]
[1726872050916,3.3937,147.31,147.29,503.3941]
[1726872051119,3.3935,147.32,147.29,513.8041]
[1726872054510,3.3937,147.31,147.29,500.0]
[1726872057420,3.3935,147.32,147.29,503.3941]
[1726872057824,3.3935,147.32,147.29,500.0]
[1726872058525,3.3935,147.32,147.29,503.394]
[1726872061223,13.8035,147.32,147.29,503.394]
[1726872061817,10.41,147.3,147.29,500.0]
[1726872063939,3.3937,147.31,147.29,500.0]
[1726872064231,3.3937,147.31,147.29,503.3941]
[1726872066029,3.3935,147.32,147.29,503.3941]
[1726872068322,8.5855504,147.34,147.31,3.3936]
[1726872068525,5.1925504,147.34,147.31,13.8036]
[1726872069330,18.9956504,147.34,147.31,3.3936]
[1726872069631,8.5856504,147.34,147.31,3.3936]
[1726872069836,10.41,147.33,147.31,3.3936]
[1726872070028,8.5856504,147.34,147.31,3.3936]
[1726872070224,18.9956504,147.34,147.31,3.3936]
[1726872071532,8.5856504,147.34,147.31,13.8036]
[1726872079827,15.6025504,147.34,147.29,500.0]
[1726872080136,15.6025504,147.34,147.29,510.41]
[1726872080438,3.3934,147.32,147.29,513.8039]
[1726872084946,3.3934,147.32,147.3,3.3938]
[1726872086633,3.3933,147.33,147.3,3.3938]
[1726872086839,3.3933,147.33,147.31,13.8036]
[1726872087231,8.5855504,147.34,147.31,13.8036]
[1726872089545,3.3932,147.33,147.31,13.8036]
[1726872089746,3.3932,147.33,147.31,3.3936]
[1726872089944,3.3932,147.33,147.3,13.8038]
[1726872092544,5.1925504,147.34,147.32,10.41]
[1726872093151,5.1925504,147.34,147.33,10.41]
[1726872093744,5.1925504,147.34,147.33,3.3932]
[1726872094151,5.1925504,147.34,147.33,13.8032]
[1726872100746,5.1925504,147.34,147.33,3.3932]
[1726872101051,5.1925504,147.34,147.32,13.8033]
[1726872102554,5.1925504,147.34,147.33,3.3932]
[1726872102993,5.1925504,147.34,147.32,10.41]
[1726872103256,5.1925504,147.34,147.33,10.41]
[1726872103754,5.1925504,147.34,147.33,13.8032]
[1726872104659,5.1925504,147.34,147.32,3.3934]
[1726872104949,5.1925504,147.34,147.33,10.41]
[1726872105259,8.5856504,147.34,147.31,10.41]
[1726872105560,5.1925504,147.34,147.29,500.0]
[1726872105749,8.5855504,147.34,147.31,10.41]
[1726872106650,8.5855504,147.34,147.31,13.8036]
[1726872107258,8.5855504,147.34,147.31,3.3936]
[1726872107458,8.5855504,147.34,147.31,13.8036]
[1726872108155,8.5855504,147.34,147.31,3.3936]
[1726872108458,8.5855504,147.34,147.31,13.8036]
[1726872117572,8.5855504,147.34,147.33,500.0]
[1726872119807,18.9955504,147.34,147.33,500.0]
[1726872120081,21.5796504,147.34,147.33,500.0]
[1726872129818,8.5855504,147.34,147.33,500.0]
[1726872134187,18.9955504,147.34,147.33,500.0]
[1726872147907,5.1925504,147.34,147.33,500.0]
[1726872148608,5.1925504,147.34,147.33,510.41]
[1726872149210,5.1925504,147.34,147.33,500.0]
[1726872149409,5.1925504,147.34,147.33,510.41]
[1726872151404,5.1925504,147.34,147.33,500.0]
[1726872155817,5.1925504,147.34,147.33,510.41]
[1726872160324,5.1925504,147.34,147.33,513.8032]
[1726872162120,5.1925504,147.34,147.33,503.3932]
[1726872162422,5.1925504,147.34,147.33,513.8032]
[1726872173559,5.1925504,147.34,147.33,510.41]
[1726872174436,5.1925504,147.34,147.33,500.0]
[1726872174626,5.1925504,147.34,147.33,510.41]
[1726872174834,5.1925504,147.34,147.33,500.0]
[1726872175082,5.1925504,147.34,147.33,510.41]
[1726872175635,5.1925504,147.34,147.33,513.8032]
[1726872184443,5.1925504,147.34,147.33,500.0]
[1726872185352,5.1925504,147.34,147.33,510.41]
[1726872188557,8.5855504,147.34,147.33,500.0]
[1726872191660,5.1925504,147.34,147.33,500.0]
[1726872192655,8.5855504,147.34,147.33,500.0]
[1726872198861,18.9955504,147.34,147.33,500.0]
[1726872199058,18.9955504,147.34,147.33,497.8555]
[1726872199366,18.9955504,147.34,147.33,495.711]
[1726872199665,22.36068333,147.34,147.33,481.17561128]
[1726872199860,22.36068333,147.34,147.33,475.54761128]
[1726872200064,22.36068333,147.34,147.33,473.40341128]
[1726872200666,18.9955504,147.34,147.33,473.40341128]
[1726872200871,22.34099625,147.34,147.33,473.40341128]
[1726872201526,18.9955504,147.34,147.33,473.40341128]
[1726872201761,22.45436668,147.34,147.33,473.40341128]
[1726872208977,18.9955504,147.34,147.33,473.40341128]
[1726872214269,22.34824429,147.34,147.33,473.40341128]
[1726872220778,8.5855504,147.34,147.33,473.40341128]
[1726872226175,18.9955504,147.34,147.33,473.40341128]
[1726872237492,8.5855504,147.34,147.33,473.40341128]
[1726872237693,5.1925504,147.34,147.33,473.40341128]
[1726872237891,0.9033504,147.34,147.33,473.40341128]
[1726872238392,0.9033504,147.34,147.33,474.70101128]
[1726872238593,13.94231709,147.36,147.33,474.70101128]
[1726872240195,3.3928,147.35,147.33,474.70101128]
[1726872244402,13.8028,147.35,147.33,474.70101128]
[1726872250511,3.3928,147.35,147.33,474.70101128]
[1726872253107,3.393,147.34,147.33,474.70101128]
[1726872257111,3.3928,147.35,147.33,474.70101128]
[1726872283856,3.393,147.34,147.33,474.70101128]
[1726872284731,3.3928,147.35,147.33,474.70101128]
[1726872291353,0.13971709,147.36,147.34,10.41]
[1726872291674,0.13971709,147.36,147.35,10.41]
[1726872292156,2.70973316,147.42,147.35,10.41]
[1726872292455,2.70973316,147.42,147.39,10.41]
[1726872293150,3.3913,147.41,147.39,10.41]
[1726872295853,3.3916,147.4,147.36,3.3924]
[1726872296159,3.3916,147.4,147.38,10.41]
[1726872298962,13.11973316,147.42,147.35,3.3926]
[1726872299260,10.41,147.41,147.37,10.41]
[1726872299666,3.3916,147.4,147.37,10.41]
[1726872300162,3.3918,147.39,147.37,10.41]
[1726872300364,10.41,147.41,147.37,10.41]
[1726872300950,3.392,147.39,147.37,10.41]
[1726872301867,10.41,147.39,147.33,474.70101128]
[1726872302065,2.70973316,147.42,147.33,485.11101128]
[1726872302066,10.41,147.38,147.33,485.11101128]
[1726872302363,3.3927,147.36,147.33,485.11101128]
[1726872302571,10.41,147.38,147.33,485.11101128]
[1726872302970,10.41,147.35,147.33,473.40341128]
[1726872303262,3.393,147.34,147.33,473.40341128]
[1726872303469,13.803,147.34,147.33,473.40341128]
[1726872317975,3.393,147.34,147.33,473.40341128]
[1726872318164,13.803,147.34,147.33,473.40341128]
[1726872355917,3.393,147.34,147.33,473.40341128]
[1726872356109,13.803,147.34,147.33,473.40341128]
[1726872360419,3.393,147.34,147.33,473.40341128]
[1726872360719,13.803,147.34,147.33,473.40341128]
[1726872375737,2.70973316,147.42,147.33,483.81341128]
[1726872375935,2.70973316,147.42,147.34,10.41]
[1726872375936,10.41,147.38,147.34,10.41]
[1726872376240,10.41,147.39,147.35,11.7271]
[1726872376947,3.3923,147.37,147.35,11.7271]
[1726872379647,3.3925,147.36,147.35,11.7271]
[1726872380440,3.3925,147.36,147.35,1.3171]
[1726872415668,3.3929,147.35,147.33,473.40341128]
[1726872417071,10.41,147.37,147.33,473.40341128]
[1726872417072,3.393,147.34,147.33,473.40341128]
[1726872421067,2.70973316,147.42,147.33,483.81341128]
[1726872421272,1.16543689,147.41,147.37,10.41]
[1726872421469,13.11973316,147.42,147.37,10.41]
[1726872421774,3.3922,147.38,147.37,10.41]
[1726872425200,2.70973316,147.42,147.37,10.41]
[1726872425371,13.11973316,147.42,147.36,1.3062]
[1726872425572,3.393,147.34,147.33,473.40341128]
[1726872426674,13.803,147.34,147.33,473.40341128]
[1726872442405,3.393,147.34,147.33,473.40341128]
[1726872446572,13.803,147.34,147.33,473.40341128]
[1726872484443,13.803,147.34,147.33,395.13341128]
[1726872494063,13.803,147.34,147.33,316.86341128]
[1726872497159,13.803,147.34,147.33,238.59341128]
[1726872498457,13.803,147.34,147.33,235.28460717]
[1726872498934,18.3014572,147.34,147.33,235.28460717]
[1726872499358,4.55573429,147.34,147.33,232.28460717]
[1726872499664,18.35273422,147.34,147.33,232.28460717]
[1726872500058,18.35273422,147.34,147.33,154.01460717]
[1726872501265,17.18999993,147.34,147.33,154.01460717]
[1726872501562,18.35273727,147.34,147.33,154.01460717]
[1726872503963,18.35273727,147.34,147.28,1.3663]
[1726872503964,3.3941,147.29,147.28,1.3663]
[1726872516972,13.8041,147.29,147.28,1.3663]
[1726872529589,13.8241,147.29,147.28,1.3663]
[1726872534390,3.3955,147.24,147.22,2.6842]
[1726872536689,3.3955,147.23,147.22,2.6842]
[1726872539002,3.3955,147.23,147.22,13.1142]
[1726872546297,3.3955,147.23,147.22,2.6842]
[1726872567534,3.3955,147.23,147.22,1.3243]
[1726872568742,3.3955,147.23,147.21,10.43]
[1726872570344,3.3957,147.22,147.21,10.43]
[1726872571335,3.3957,147.22,147.2,11.8157]
[1726872572234,3.3957,147.22,147.21,6.1458323]
[1726872572636,3.3957,147.22,147.21,6.14586191]
[1726872573943,3.3957,147.22,147.2,11.8157]
[1726872575140,3.3957,147.22,147.21,6.14631]
[1726872576443,3.3956,147.23,147.21,16.57631]
[1726872576744,3.3956,147.23,147.21,10.43]
[1726872580832,6.7869,147.32,147.22,10.43]
[1726872581036,10.43,147.28,147.23,10.43]
[1726872581450,3.395,147.26,147.23,10.43]
[1726872581741,3.395,147.26,147.25,10.43]
[1726872582544,3.3946,147.27,147.25,10.43]
[1726872582741,3.3946,147.27,147.26,10.43]
[1726872585136,3.3946,147.27,147.23,3.3955]
[1726872585137,3.3946,147.27,147.25,10.43]
[1726872587247,3.3948,147.26,147.25,10.43]
[1726872601873,102.57347834,147.34,147.25,10.43]
[1726872602066,102.57347834,147.34,147.22,1.3689]
[1726872602067,4.68679993,147.34,147.29,10.43]
[1726872602370,15.11679993,147.34,147.29,10.43]
[1726872602571,10.43,147.31,147.27,10.43]
[1726872603069,3.3943,147.28,147.27,10.43]
[1726872603254,3.3943,147.28,147.26,1.3071]
[1726872603460,3.3943,147.28,147.25,10.43]
[1726872604270,3.3946,147.27,147.25,10.43]
[1726872605171,3.395,147.25,147.22,2.676]
[1726872605374,3.395,147.25,147.23,6.1418664]
[1726872605666,3.395,147.25,147.22,13.106]
[1726872605869,3.395,147.25,147.23,10.43]
[1726872606379,3.395,147.25,147.24,10.43]
[1726872615682,10.43,147.28,147.23,6.1417081]
[1726872615878,10.43,147.27,147.23,10.43]
[1726872616581,10.43,147.27,147.22,1.3071]
[1726872616884,10.43,147.27,147.23,10.43]
[1726872617479,3.3954,147.24,147.23,10.43]
[1726872618985,3.3955,147.23,147.21,10.43]
[1726872619187,10.43,147.25,147.2,10.43]
[1726872619375,10.43,147.25,147.21,6.14302657]
[1726872619578,10.43,147.25,147.2,10.43]
[1726872619886,10.43,147.25,147.21,6.14316682]
[1726872620085,10.43,147.25,147.2,10.43]
[1726872620281,10.43,147.25,147.21,6.14315764]
[1726872620474,10.43,147.25,147.2,10.43]
[1726872620679,10.43,147.25,147.21,6.14338614]
[1726872620977,10.43,147.25,147.19,81.44230897]
[1726872621186,10.43,147.24,147.2,6.1437569]
[1726872621385,10.43,147.24,147.19,91.87230897]
[1726872621609,10.43,147.24,147.2,6.14407242]
[1726872621881,13.86862084,147.24,147.19,91.87230897]
[1726872622084,13.86862084,147.24,147.2,6.14410846]
[1726872622298,13.86862084,147.24,147.19,91.87230897]
[1726872622478,13.86862084,147.24,147.2,6.14433447]
[1726872622679,3.3959,147.22,147.19,91.87230897]
[1726872622880,3.3959,147.22,147.19,81.44230897]
[1726872627184,13.8259,147.22,147.19,81.44230897]
[1726872628190,3.396,147.21,147.19,81.44230897]
[1726872633398,3.3962,147.2,147.19,81.44230897]
[1726872633694,3.3962,147.2,147.19,87.58434284]
[1726872635515,3.3962,147.2,147.19,81.44230897]
[1726872635892,3.3962,147.2,147.19,87.58407975]
[1726872637310,3.3962,147.2,147.19,81.44230897]
[1726872637497,3.3962,147.2,147.19,87.58344336]
[1726872638974,3.3962,147.2,147.19,81.44230897]